Cogmind - Beta 12 @@@ ROGUE MODE // 2023.04.01 @ 21:04:40 Player: Inkie Result: Destroyed by Y-45 Defender with Beam Rifle Performance ------------- Evolutions (2) 1000 Regions Visited (5) 1000 Robots Destroyed (67) 335 Value Destroyed (2055) 2055 Prototype IDs (30) 600 Alien Tech Used (0) 0 Bonus (107) 107 TOTAL SCORE: 5097 Bonus ------- High Alert Combat Kills 33 Aligned with FarCom 300 Friendly Fire -226 Cogmind --------- Core Integrity 0/550 Matter 252/300 Energy 61/100 System Corruption 0% Temperature Cool (9) Movement Core (1350) Ox26 Location -8/Materials Parts ------- > --- POWER (1) -------- (None) > --- PROPULSION (2) --- (None) > --- UTILITY (5) ------ Improved Heat Sink Huge Storage Unit Hacking Suite Hacking Suite > --- WEAPON (3) ------- (None) > --- INVENTORY (25) --- Heavy Ion Engine Armored Wheel Improved Targeting Computer Advanced Targeting Computer Improved Propulsion Shielding Hardened Medium Armor Plating Hardened Medium Armor Plating Reactive Plating System Shield Chronowheel Improved EM Shotgun Improved EM Shotgun Gatling Laser EM Pulse Cannon Latent Energy Streamer Enhanced Autogun Enhanced Autogun Enhanced Autogun AWS/Gauss Flak Cannon Katana Peak State ------------ > --- POWER ------------ Light Deuterium Engine > --- PROPULSION ------- Armored Wheel Armored Wheel > --- UTILITY ---------- Advanced Heat Sink Huge Storage Unit Machine Analyzer Hardened Medium Armor Plating Hacking Suite > --- WEAPON ----------- Precision Beam Rifle Gatling Laser Enhanced Autogun > --- INVENTORY -------- Armored Wheel Armored Wheel Improved Heat Sink Improved Targeting Computer Advanced Targeting Computer Improved Propulsion Shielding Hardened Medium Armor Plating Improved Light Armor Plating Improved Light Armor Plating Reactive Plating System Shield Chronowheel Improved EM Shotgun Gatling Laser EM Pulse Cannon Latent Energy Streamer Enhanced Autogun Enhanced Autogun Enhanced Autogun AWS/Gauss Flak Cannon Advanced EMP Blaster Rocket Launcher Katana [Rating: 44] Favorites ----------- Power Light Nuclear Core Engine Light Ion Engine Power Core Light Nuclear Core Propulsion Improved Treads Treads Improved Treads Wheel Armored Wheel Utility Huge Storage Unit Device Improved Heat Sink Storage Huge Storage Unit Processor Machine Analyzer Hackware Hacking Suite Protection Hardened Medium Armor Plating Weapon Advanced Beam Rifle Energy Gun Advanced Beam Rifle Ballistic Gun Assault Rifle Launcher Grenade Launcher Slashing Weapon Katana Build | -11 -10 -10 -10 -9 -8 ------- Run | Jun Mat Min Exi Min Mat Slots Evolved 4 | . . . . . 4 Power . | . . . . . . Propulsion . | . . . . . . Utility 3 | . . . . . 3 Weapon 1 | . . . . . 1 Parts Attached 68 | 6 6 1 . 3 52 Power 8 | 1 . 1 . . 6 Engine 6 | 1 . . . . 5 Core 2 | . . 1 . . 1 Reactor . | . . . . . . Propulsion 10 | 2 3 . . 1 4 Treads 6 | 2 3 . . 1 . Leg . | . . . . . . Wheel 4 | . . . . . 4 Hover . | . . . . . . Flight . | . . . . . . Utility 20 | 1 2 . . . 17 Device 8 | . 1 . . . 7 Storage 3 | 1 1 . . . 1 Processor 1 | . . . . . 1 Hackware 3 | . . . . . 3 Protection 5 | . . . . . 5 Artifact . | . . . . . . Weapon 30 | 2 1 . . 2 25 Energy Gun 15 | 1 1 . . 1 12 Energy Cannon . | . . . . . . Ballistic Gun 2 | 1 . . . . 1 Ballistic Cannon . | . . . . . . Launcher 7 | . . . . . 7 Special Weapon . | . . . . . . Impact Weapon . | . . . . . . Slashing Weapon 6 | . . . . 1 5 Piercing Weapon . | . . . . . . Special Melee Weapon . | . . . . . . Unidentified Prototypes 5 | . . . . . 5 Parts Lost 24 | . 2 . . 3 19 Power 4 | . . . . . 4 Propulsion 8 | . 1 . . 1 6 Utility 4 | . . . . . 4 Weapon 8 | . 1 . . 2 5 Highest Loss Streak 9 | . 2 . . 3 9 To Critical Strikes . | . . . . . . Average Slot Usage (%) 94 | . 95 100 100 98 90 Engine 5 | . 14 2 . . 6 Core 4 | . . 11 14 14 . Treads 15 | . 28 28 28 27 5 Wheel 6 | . . . . . 11 Device 14 | . 3 14 14 14 17 Storage 11 | . 21 14 14 14 9 Processor 1 | . . . . . 3 Hackware 3 | . . . . . 6 Protection 2 | . . . . . 3 Energy Gun 22 | . 18 28 28 14 20 Slashing Weapon 3 | . . . . 13 4 Naked Turns . | . . . . . . Heaviest Build 107 | 14 95 91 91 91 107 Greatest Support 46 | 40 46 46 46 46 46 Greatest Overweight (x) 9 | . 2 1 1 3 9 Average Overweight (x) 3 | . . 1 1 1 5 Largest Inventory Capacity 25 | 8 25 25 25 25 25 Average Capacity 24 | 6 20 25 25 25 25 Most Carried 25 | 2 8 10 14 13 25 Average Carried 16 | 1 6 9 11 12 21 Final Capacity 25 | 8 25 25 25 25 25 Final Carried 22 | 2 7 10 13 13 22 Class Distribution -------------------- 51% | Mutant 21% | Scavenger-Mutant 10% | Skirmisher 9% | Scavenger-Skirmisher 6% | Hacker-Mutant Dominant Class ---------------- Mutant | -10/Materials Mutant | -10/Mines Mutant | -10/Exiles Scavenger-Mutant | -9/Mines Scavenger-Mutant | -8/Materials Resources | -11 -10 -10 -10 -9 -8 ----------- Run | Jun Mat Min Exi Min Mat Matter Collected 906 | 234 94 10 . 30 538 Remotely . | . . . . . . Salvage Created 2508 | . 237 182 . 73 2016 Parts 126 | . 12 14 . 3 97 Haulers Intercepted 6 | . . . . . 6 Recyclers Shooed 1 | . . . . . 1 Parts Field Recycled . | . . . . . . Retrieved Matter . | . . . . . . Parts Self-Destructed . | . . . . . . Prevented . | . . . . . . Kills | -11 -10 -10 -10 -9 -8 ------- Run | Jun Mat Min Exi Min Mat Combat Hostiles Destroyed 49 | . 5 8 . 2 34 Melee 2 | . . . . . 2 Guns 36 | . 5 8 . 2 21 AOE 9 | . . . . . 9 Classes Destroyed 11 | . 1 1 . 1 8 Worker 3 | . . . . . 3 Builder 1 | . . . . . 1 Tunneler 2 | . . . . . 2 Hauler 6 | . . . . . 6 Operator 2 | . . . . . 2 Watcher 3 | . . . . . 3 Swarmer 10 | . . 6 . . 4 Grunt 31 | . 5 2 . 1 23 Duelist 1 | . . . . 1 . Sentry 6 | . . . . . 6 Hunter 1 | . . . . . 1 Thug 1 | . . . . . 1 Best Kill Streak 8 | . 2 6 . 2 8 Combat Bots Only 7 | . 2 6 . 2 7 Max Kills in Single Turn 4 | . 1 2 . 1 4 Gunslinging 1 | . . 1 . . . Exploded 3 | . . . . . 3 Melee 1 | . . . . . 1 Uniques/NPCs Destroyed . | . . . . . . Combat | -11 -10 -10 -10 -9 -8 -------- Run | Jun Mat Min Exi Min Mat Damage Taken 3487 | . 552 131 . 274 2530 Core 701 | . 85 10 . 45 561 Absorbed by Shields . | . . . . . . Regen/Repaired (Parts) 40 | . . . . . 40 Core Remaining (%) 72 | 100 . . . 44 . Volleys Fired 136 | . 18 10 . 11 97 Largest 3 | . 2 2 . 2 3 Hottest 221 | . 115 115 . 115 221 Shots Fired 269 | . 35 20 . 16 198 Gun 255 | . 35 20 . 16 184 Cannon . | . . . . . . Launcher 14 | . . . . . 14 Special . | . . . . . . Kinetic 15 | . 15 . . . . Thermal 240 | . 20 20 . 16 184 Explosive 11 | . . . . . 11 Electromagnetic 3 | . . . . . 3 Robot Hit Streak 22 | . 11 9 . 5 22 Robot Miss Streak 3 | . 2 3 . 2 3 Penetration Max . | . . . . . . Secondary Targets 9 | . 1 4 . . 4 Max Gunslinging Chain 1 | . 1 1 . . 1 Shots Hit Robots 215 | . 28 14 . 12 161 Core Hits 121 | . 12 11 . 4 94 Critical Kills . | . . . . . . Critical Parts Destroyed . | . . . . . . Critical Strikes 15 | . 5 1 . . 9 Burn 14 | . 5 1 . . 8 Sever 1 | . . . . . 1 Melee Attacks 32 | . . . . . 32 Impact . | . . . . . . Slashing 32 | . . . . . 32 Piercing . | . . . . . . Sneak Attacks 6 | . . . . . 6 Combat Hostiles . | . . . . . . Follow-up Attacks . | . . . . . . Damage Inflicted 5650 | . 392 195 . 188 4875 Guns 3407 | . 365 195 . 188 2659 Cannons . | . . . . . . Explosions 1459 | . . . . . 1459 Melee 757 | . . . . . 757 Ramming 27 | . 27 . . . . Kinetic 167 | . 167 . . . . Thermal 3382 | . 198 195 . 188 2801 Explosive 846 | . . . . . 846 Electromagnetic 471 | . . . . . 471 Impact . | . . . . . . Slashing 757 | . . . . . 757 Piercing . | . . . . . . Highest Corruption . | . . . . . . Average Corruption . | . . . . . . Corruption Purged . | . . . . . . Corruption Blocked . | . . . . . . Overload Shots . | . . . . . . Overflow Damage 44 | . . . . . 44 Projectiles . | . . . . . . Explosions 20 | . . . . . 20 Melee 24 | . . . . . 24 Knockbacks . | . . . . . . Impact . | . . . . . . Kinetic . | . . . . . . Secondary . | . . . . . . Self-Inflicted Damage 50 | . . . . . 50 Shots 3 | . . . . . 3 Rammed 10 | . 9 . . . 1 Targets Rammed 10 | . 9 . . . 1 Kicked . | . . . . . . Crushed . | . . . . . . Highest Temperature 300 | . 249 105 . 138 300 Average Temperature 74 | . 92 43 . 86 70 Received Heat Transfer 1407 | . 369 42 . 60 936 Effects 2 | . 2 . . . . Interference 2 | . 2 . . . . Siege Activations . | . . . . . . Robots Corrupted 1 | . . . . . 1 Combat Hostiles 1 | . . . . . 1 Parts Fried 1 | . . . . . 1 Impact Corruptions . | . . . . . . Robots Melted 1 | . . . . . 1 Combat Hostiles 1 | . . . . . 1 Parts Melted 10 | . 3 . . 1 6 Heat Transferred 8111 | . 925 592 . 481 6113 Parts Sabotaged . | . . . . . . Parts Stolen . | . . . . . . Parts Stripped . | . . . . . . Power Chain Reactions 2 | . . . . . 2 Missiles Intercepted . | . . . . . . Alert | -11 -10 -10 -10 -9 -8 ------- Run | Jun Mat Min Exi Min Mat Peak Influence 479 | . 159 209 . 40 479 Initial 4 | . . 4 . . . Average 100 | . 30 90 . 33 128 Maximum Alert Level 2 | . . 1 . . 2 Low Security (%) 80 | 100 100 73 . 100 76 Level 1 18 | . . 26 . . 23 Level 2 . | . . . . . . Level 3 . | . . . . . . Level 4 . | . . . . . . Level 5 . | . . . . . . High Security . | . . . . . . Max Security . | . . . . . . Squads Dispatched 9 | . 1 . . . 8 Investigation 2 | . . . . . 2 Extermination . | . . . . . . Reinforcement 6 | . 1 . . . 5 Assault . | . . . . . . Garrison 1 | . . . . . 1 Intercept . | . . . . . . Searches Triggered . | . . . . . . Construction Impeded . | . . . . . . Haulers Reinforced . | . . . . . . Active Scanning Responses . | . . . . . . Cargo Convoy Interrupts . | . . . . . . Stealth | -11 -10 -10 -10 -9 -8 --------- Run | Jun Mat Min Exi Min Mat Distress Signals 6 | . 2 . . . 4 Communications Jammed . | . . . . . . Distress Signals . | . . . . . . Times Spotted 84 | . 12 7 . 2 63 Peak Tracking Total 8 | . 6 5 . 2 8 Tactical Retreats 7 | . 1 . . . 6 Traps | -11 -10 -10 -10 -9 -8 ------- Run | Jun Mat Min Exi Min Mat Traps Triggered 3 | . . . . . 3 Indirectly . | . . . . . . Trap Hack Attempts . | . . . . . . Triggered . | . . . . . . Disarmed . | . . . . . . Reprogrammed . | . . . . . . Reused . | . . . . . . Traps Extracted . | . . . . . . Installed . | . . . . . . Triggered . | . . . . . . Machines | -11 -10 -10 -10 -9 -8 ---------- Run | Jun Mat Min Exi Min Mat Machines Disabled 3 | . . . . . 3 Max in Single Turn 1 | . . . . . 1 Machines Repaired . | . . . . . . Machines Sabotaged . | . . . . . . Overloaded Fab Kills . | . . . . . . Hacking | -11 -10 -10 -10 -9 -8 --------- Run | Jun Mat Min Exi Min Mat Machines Accessed 15 | . 3 . 2 . 10 Terminals 12 | . 3 . . . 9 Fabricators . | . . . . . . Repair Stations 1 | . . . . . 1 Recycling Units . | . . . . . . Scanalyzers . | . . . . . . Garrison Access . | . . . . . . Total Hacks 45 | . 13 . 2 . 30 Successful 17 | . 6 . 2 . 9 Failed 28 | . 7 . . . 21 Catastrophic 4 | . 1 . . . 3 Database Lockouts . | . . . . . . Manual 36 | . 11 . 1 . 24 Terminals 39 | . 13 . . . 26 Fabricators . | . . . . . . Repair Stations 4 | . . . . . 4 Recycling Units . | . . . . . . Scanalyzers . | . . . . . . Garrison Access . | . . . . . . Terminal Hacks 11 | . 5 . 2 . 4 Record 2 | . 1 . 1 . . Robot Analysis 2 | . 2 . . . . Prototype ID Bank 1 | . 1 . . . . Branch Access Points 1 | . 1 . . . . Garrison Index 1 | . . . . . 1 Alert Level 1 | . . . . . 1 Unreport Threat 1 | . . . . . 1 Recall Investigation 1 | . . . . . 1 EX-Prototype ID Bank 1 | . . . 1 . . Fabricator Hacks . | . . . . . . Repair Station Hacks 3 | . . . . . 3 Scan Component 2 | . . . . . 2 Repair 1 | . . . . . 1 Recycling Unit Hacks . | . . . . . . Scanalyzer . | . . . . . . Garrison Access Hacks . | . . . . . . Unauthorized Hacks 3 | . 1 . . . 2 Terminals 3 | . 1 . . . 2 Assimilate 1 | . . . . . 1 Botnet 2 | . 1 . . . 1 Fabricators . | . . . . . . Repair Stations . | . . . . . . Recycling Units . | . . . . . . Scanalyzers . | . . . . . . Garrison Access . | . . . . . . Data Cores Recovered . | . . . . . . Used . | . . . . . . Hacking Detections 12 | . 2 . . . 10 Full Trace Events 1 | . . . . . 1 Feedback Events . | . . . . . . Feedback Blocked . | . . . . . . Robot Schematics Acquired . | . . . . . . Robots Built . | . . . . . . Authchips . | . . . . . . Time . | . . . . . . Total Robot Build Rating . | . . . . . . Part Schematics Acquired . | . . . . . . Parts Built . | . . . . . . Authchips . | . . . . . . Time . | . . . . . . Total Part Build Rating . | . . . . . . Parts Repaired 1 | . . . . . 1 Time 38 | . . . . . 38 Parts Recycled . | . . . . . . Recycled Matter . | . . . . . . Retrieved Matter . | . . . . . . Retrieved Components . | . . . . . . Parts Scanalyzed . | . . . . . . Part Schematics Acquired . | . . . . . . Parts Damaged . | . . . . . . Bothacking | -11 -10 -10 -10 -9 -8 ------------ Run | Jun Mat Min Exi Min Mat Used RIF Installer . | . . . . . . Robots Hacked . | . . . . . . Non-combat . | . . . . . . Combat . | . . . . . . Robot Hacks Applied . | . . . . . . Relay Couplers Released . | . . . . . . Fabnet Peak Effective % . | . . . . . . Robots Rewired . | . . . . . . Allies Hacked . | . . . . . . Hacks Repelled . | . . . . . . Allies | -11 -10 -10 -10 -9 -8 -------- Run | Jun Mat Min Exi Min Mat Total Allies 2 | . . . . 2 . Largest Group 2 | . . . . 2 2 Highest-Rated Group 45 | . . . . 45 45 Highest-Rated Ally 31 | . . . . 31 31 Total Orders . | . . . . . . Ally Attacks 3 | . . . . . 3 Total Damage 62 | . . . . . 62 Kills . | . . . . . . Allies Corrupted . | . . . . . . Allies Melted . | . . . . . . Intel | -11 -10 -10 -10 -9 -8 ------- Run | Jun Mat Min Exi Min Mat Robot Analysis Total 2 | . 2 . . . . Derelict Logs Recovered 2 | . . 1 . 1 . Drone Launches . | . . . . . . Drone Recoveries . | . . . . . . Exploration | -11 -10 -10 -10 -9 -8 ------------- Run | Jun Mat Min Exi Min Mat Turns Passed 5788 | 89 528 863 753 455 3100 Spaces Moved 2251 | 51 179 346 313 175 1187 Core 2 | 2 . . . . . Treads 1177 | 49 179 346 313 175 115 Legs . | . . . . . . Wheels 1072 | . . . . . 1072 Hover . | . . . . . . Flight . | . . . . . . Fastest Speed 50 | 50 160 240 240 240 135 Average Speed 208 | 155 229 240 240 242 185 Slowest Speed 400 | 160 320 240 240 400 400 Overloaded Moves . | . . . . . . Propulsion Burnouts . | . . . . . . Robots Hopped . | . . . . . . Cave-ins Triggered . | . . . . . . Exploration Rate (%) 51 | 4 31 71 70 41 91 Regions Visited 5 Branch Regions 3 Pre-discovered Areas 1 | . . . 1 . . Known Exits Taken 1 | . 1 . . . . Unknown Exits Taken 4 | 1 . 1 1 1 . Scrap Searched 1 | . . 1 . . . Spaces Dug 39 | . . . . . 39 Terrain Destroyed 84 | . . . . . 84 Melee 8 | . . . . . 8 Projectile . | . . . . . . AOE 76 | . . . . . 76 Terrain Rammed . | . . . . . . Walls Destroyed . | . . . . . . Machines Disabled . | . . . . . . Actions | -11 -10 -10 -10 -9 -8 --------- Run | Jun Mat Min Exi Min Mat Total 3026 | 58 251 359 316 190 1852 Wait 446 | . 24 1 . . 421 Move 2246 | 50 178 345 312 174 1187 Hop . | . . . . . . Pick Up 54 | 2 11 2 3 2 34 Fast Attach 22 | 6 2 . . 1 13 Attach 14 | . 1 . . 2 11 Detach 3 | . . . . . 3 Swap 32 | . 3 1 . . 28 Drop 31 | . 5 . 1 . 25 Fire 136 | . 18 10 . 11 97 Melee 32 | . . . . . 32 Ram 1 | . . . . . 1 Kick . | . . . . . . Crush 9 | . 9 . . . . Escape Stasis . | . . . . . . Rewire . | . . . . . . Trap . | . . . . . . Miscellaneous . | . . . . . . Route ------- -11/Junkyard -10/Materials (discovered 3 exits: [*Mat] / *Min x2) -10/Mines (discovered 2 exits: [*Mat] / *Exi) -10/Exiles (discovered 2 exits: [*Min x2]) -9/Mines -8/Materials (discovered 2 exits: [*Fac x2]) History --------- Turn | Location | Event 33 | -11/Junkyard | Discovered new exit (range 16) 90 | -11/Junkyard | Entered Materials 302 | -10/Materials | Build established: Mutant 501 | -10/Materials | Discovered new exit (range 9) 508 | -10/Materials | Identified exit to Mines 618 | -10/Materials | Entered Mines 626 | -10/Mines | Met a Derelict bent on vengeance 743 | -10/Mines | Discovered new exit (range 5) 1471 | -10/Mines | Deemed a non-threat by the Exiles lab entrance 1471 | -10/Mines | Discovered new exit (range 5) 1481 | -10/Mines | Entered Exiles 1517 | -10/Exiles | Discovered new exit (range 15) 1546 | -10/Exiles | Met 8R-AWN 1582 | -10/Exiles | Met EX-HEX 1693 | -10/Exiles | Met EX-DEC 1825 | -10/Exiles | Learned location of Zion (-7) 1873 | -10/Exiles | Met EX-BIN 1913 | -10/Exiles | Aligned with FarCom system 1916 | -10/Exiles | Given EX-Vault access code 1971 | -10/Exiles | Opened EX-Vault 1990 | -10/Exiles | Found Chronowheel 1994 | -10/Exiles | Found AWS/Gauss 2004 | -10/Exiles | Found Latent Energy Streamer 2053 | -10/Exiles | Warned to stay clear of 0b10 Research branches 2210 | -10/Exiles | Discovered new exit (range 12) 2234 | -10/Exiles | Stole three prototypes: Chronowheel, AWS/Gauss, Latent Energy Streamer 2234 | -10/Exiles | Entered Mines 2245 | -9/Mines | Core integrity fell below 50% 2283 | -9/Mines | Lost 3 parts (1n2w) 2302 | -9/Mines | Learned Materials stockpile data 2393 | -9/Mines | Received a Rocket Launcher from a helpful Derelict 2433 | -9/Mines | Discovered new exit (range 14) 2544 | -9/Mines | Build established: Scavenger-Mutant 2689 | -9/Mines | Entered Materials 2689 | -8/Materials | Accompanied by 2 allies 2689 | -8/Materials | Evolved 4 slots: Utility x3, Weapon x1 2694 | -8/Materials | Led the pair of lost Derelicts to an unsafe place 3029 | -8/Materials | Build established: Mutant 3453 | -8/Materials | Build established: Scavenger-Skirmisher 3687 | -8/Materials | Discovered new exit (range 8) 3829 | -8/Materials | Lost 3 parts (1p2u) 3974 | -8/Materials | Build established: Scavenger-Mutant 4302 | -8/Materials | Lost 3 parts (1p1n1u) 4815 | -8/Materials | Repaired Katana 4816 | -8/Materials | Build established: Skirmisher 5707 | -8/Materials | Build established: Hacker-Mutant 5764 | -8/Materials | Core integrity fell below 50% 5765 | -8/Materials | Garrison activated, responded to threat 5782 | -8/Materials | Discovered new exit (range 16) 5786 | -8/Materials | Core integrity fell below 20% 5789 | -8/Materials | Destroyed by Y-45 Defender with Beam Rifle Last Messages --------------- 05769_ Y-45 Defender destroyed. 05770_ G-47 Trooper system terminally corrupted. 05770_ Imp. Heat Sink fried. 05772_ G-47 Trooper misfires. 05774_ Destroyed Lgt. Nuclear Core. 05774_ G-47 Trooper destroyed. 05777_ The unstable cave ceiling collapses. 05779_ Penetrated by Slug. 05781_ Rocket Launcher destroyed. 05781_ Knocked back. 05782_ EXIT=FOUND 05783_ Prc. Beam Rifle destroyed. 05783_ Penetrated by Slug. 05783_ Adv. EMP Blaster destroyed. 05783_ Arm. Wheel destroyed. 05783_ Knocked back. 05784_ Critical hit (Burn: +37). 05785_ Knocked back. 05787_ Penetrated by Slug. 05787_ Arm. Wheel destroyed. Map ----- +----------------------------------------------------+ | | | | | | | | | | | | | | | | | | | | | | | | | | | | | | | | | | | ?????????????????????????????????????????????????? | | ????????????????####? ##????????#########????????? | | ????????????????? ????????# #????????? | | ????????????????? """ ??????## "" "" ########## | | ?????????????????""" G" ??????#" ""S"" + % | | ???????????????? """ """ ??????## """" # ## | | ???????????????# """ ##????## # #[ | | ???????????????# ;####?########## !!#* | | ???????????????# ]Y@ % ### # ! # | | ???????????????# ! % ## S # # | | ???????????????#######/ Y # "" + ==## | | ?????????????? tY = ! % %"" #######!## | | ?????????????< * = [ #?????#%## | | ????????????? %= = %! #?????#!! | | ??????????????##o#####/ [% #===! #?????#+## | | ?????????????? ?? ## ==! * *#????? # | | ????????????? ??? # # ==!=%= #????? * # | | ???????????????? # H ######## ##???? # | | ???????????????? ## #???????##????? [# | | ???????????????? """T""" ?# #?????????????###### | | ??????????????????#######?# #?????????????#!! | | ???????????###????????????# #?????????????#!! | | ????###########???????????# #?????????????#!! | | ????# ##???????????# #?????????????# | | ????# ##??????"""??# ??????????????# | | ????# """ ! #???????"R"??+ ??????????????# | | ????#""""" #???????"?"??? ??????????????###### | | ????#""""" #???????????????????????????????????? | | ????#""""" #???????????????????????????????????? | | ????# """ #???????????????????????????????????? | | ????# #???????????????????????????????????? | | ????# #???????????????????????????????????? | | #########+####???????????????????????????????????? | +----------------------------------------------------+ Best States ------------- Heat Dissipation 80 Energy Generation 14 Energy Capacity 280 Matter Stores 300 Matter Capacity 300 Sight Range 16 Terrain Scan Density 10 Armor Coverage 225 Evasion (%) 40 Recoil Reduction 2 Offensive Hacking 20 Defensive Hacking 10 Item Schematics ----------------- None Robot Schematics ------------------ None Fabricated ------------ Nothing Alien Tech Used ----------------- None Achievements -------------- None Challenges ------------ None Game ------ Seed FortressEnergyBroadsword Manual? 0 Play Time 00:32:02 Cumulative 431.3 hours Start 2023.04.01 @ 19:57:41 End 2023.04.01 @ 21:04:40 Sessions 1 Manual Loads 0 Difficulty Rogue Special Mode None Game No. 471 Rogue 462 Adventurer 8 Explorer 1 Win Type - Total 7 Types 4/1/2/0/0/0/0/0/0 Lore% 79 Gallery% 90 Achievement% 71 Wizard Run 0 Options --------- ASCII 0 Keyboard 0 Movement Numpad Keybinds 1 Fullscreen 2 Font 18/Terminus Map View 76x50 Tactical HUD 1 Map Filters NONE Filters NONE Steam 1 RUN: 511c95a7-0870-41da-8523-59526d904ae7